fUST/lending_fUST_20250717
["ID","MTS","AMOUNT","RATE_DAILY","PERIOD"]
[372631611,1752718245766,-293.619493,0.00018471,2]
[372631612,1752718245776,-463.75197737,0.00018471,2]
[372631613,1752718245786,-460.0,0.00018471,2]
[372631614,1752718245795,-465.07171616,0.00018471,2]
[372631615,1752718245805,-151.0,0.00018471,2]
[372631616,1752718245818,-460.0,0.00018471,2]
[372631617,1752718245827,-151.0,0.00018471,2]
[372631618,1752718245836,-199.68721591,0.00018471,2]
[372631619,1752718245845,-151.0,0.00018471,2]
[372631620,1752718245856,-151.0,0.00018471,2]
[372631621,1752718245867,-460.0,0.00018471,2]
[372631622,1752718245876,-465.77527968,0.00018471,2]
[372631623,1752718245886,-460.0,0.00018471,2]
[372631624,1752718245896,-460.0,0.00018471,2]
[372631625,1752718245905,-460.0,0.00018471,2]
[372631627,1752718245914,-462.70618144,0.00018471,2]
[372631628,1752718245925,-461.53923398,0.00018471,2]
[372631629,1752718245934,-461.66747283,0.00018471,2]
[372631630,1752718245944,-462.47225183,0.00018471,2]
[372631631,1752718245952,-463.02392968,0.00018471,2]
[372631632,1752718245962,-455.21875513,0.00018471,2]
[372631633,1752718245971,-343.772556,0.00018471,2]
[372631634,1752718245980,-460.0,0.00018471,2]
[372631635,1752718245988,-343.772556,0.00018471,2]
[372631636,1752718245998,-206.506608,0.00018471,2]
[372631637,1752718246007,-206.506608,0.00018471,2]
[372631638,1752718246016,-151.0,0.00018472,2]
[372631639,1752718246025,-675.228133,0.00018472,2]
[372631640,1752718246034,-151.0,0.00018472,2]
[372631641,1752718246044,-151.0,0.00018472,2]
[372631642,1752718246054,-504.91324515,0.00018473,2]
[372631643,1752718246062,-500.69845363,0.00018473,2]
[372631644,1752718246072,-158.06559516,0.00018473,2]
[372631645,1752718246081,-548.06828774,0.00018473,2]
[372631646,1752718246090,-500.0,0.00018473,2]
[372631647,1752718246099,-500.69357684,0.00018473,2]
[372631648,1752718246109,-500.0,0.00018473,2]
[372631649,1752718246118,-500.0,0.00018473,2]
[372631650,1752718246128,-501.57887198,0.00018473,2]
[372631651,1752718246137,-410.45934692,0.00018473,2]
[372631652,1752718246147,-500.0,0.00018473,2]
[372631653,1752718246157,-500.0,0.00018473,2]
[372631654,1752718246166,-500.0,0.00018473,2]
[372631655,1752718246176,-501.15243991,0.00018473,2]
[372631656,1752718246185,-500.0,0.00018473,2]
[372631657,1752718246194,-151.0,0.00018473,2]
[372631658,1752718246203,-151.0,0.00018473,2]
[372631659,1752718246213,-151.0,0.00018473,2]
[372631660,1752718246223,-151.0,0.00018473,2]
[372631661,1752718246232,-151.0,0.00018473,2]
[372631662,1752718246242,-151.0,0.00018473,2]
[372631663,1752718246251,-176.167926,0.00018473,2]
[372631664,1752718246260,-176.167926,0.00018473,2]
[372631665,1752718246270,-156.511881,0.00018473,2]
[372631666,1752718246279,-156.511881,0.00018473,2]
[372631667,1752718246288,-301.773818,0.00018473,2]
[372631668,1752718246298,-301.773818,0.00018473,2]
[372631669,1752718246308,-177.44965,0.00018495,2]
[372631670,1752718246318,-177.44965,0.00018495,2]
[372631671,1752718246327,-2000.0,0.00018496,2]
[372631672,1752718246337,-166.7366,0.00018496,2]
[372631673,1752718246347,-264.021695,0.00018496,2]
[372631674,1752718246356,-151.0,0.00018496,2]
[372631675,1752718246368,-297.1,0.00018496,2]
[372631676,1752718246378,-154.033612,0.00018496,2]
[372631677,1752718246387,-154.033612,0.00018496,2]
[372631678,1752718246396,-151.0,0.00018496,2]
[372631679,1752718246406,-151.0,0.00018496,2]
[372631680,1752718246415,-177.44965,0.00018497,2]
[372631682,1752718246425,-1129.212795,0.000185,2]
[372631683,1752718246435,-1129.212795,0.000185,2]
[372631684,1752718246444,-5000.0,0.00018546,2]
[372631685,1752718246454,-282.708891,0.00018546,2]
[372631686,1752718246463,-282.708891,0.00018546,2]
[372631687,1752718246473,-153.0,0.000186,2]
[372631688,1752718246482,-153.0,0.000186,2]
[372631689,1752718246491,-153.0,0.000186,2]
[372631690,1752718246501,-429.1687796,0.000186,2]
[372631691,1752718246510,-429.1687796,0.000186,2]
[372631692,1752718246520,-153.0,0.000186,2]
[372631693,1752718246529,-429.1687796,0.000186,2]
[372631694,1752718246538,-153.0,0.000186,2]
[372631695,1752718246547,-429.1687796,0.000186,2]
[372631696,1752718246556,-429.1687796,0.000186,2]
[372631697,1752718246565,-429.1687796,0.000186,2]
[372631698,1752718246574,-380.2487681,0.000186,2]
[372631699,1752718246584,-576.8651031,0.000186,2]
[372631700,1752718246593,-576.8651031,0.000186,2]
[372631701,1752718246603,-576.8651031,0.000186,2]
[372631702,1752718246614,-159.7314836,0.000186,2]
[372631703,1752718246623,-429.1687796,0.000186,2]
[372631704,1752718246632,-306.1586121,0.000186,2]
[372631705,1752718246641,-576.8651031,0.000186,2]
[372631707,1752718246650,-1153.1982291,0.000186,2]
[372631709,1752718246659,-159.7314836,0.000186,2]
[372631710,1752718246668,-159.7314836,0.000186,2]
[372631711,1752718246677,-800.0,0.00018623,2]
[372631712,1752718246686,-159.7314836,0.000187,2]
[372631713,1752718246695,-1153.1982291,0.000187,2]
[372631714,1752718246704,-178.0216189,0.000187,2]
[372631715,1752718246715,-178.0216191,0.000187,2]
[372631716,1752718246723,-153.0,0.000187,2]
[372631717,1752718246733,-576.8651031,0.000187,2]
[372631718,1752718246742,-159.7314836,0.000187,2]
[372631719,1752718246751,-576.8651031,0.000187,2]
[372631720,1752718246763,-156.0401448,0.000187,2]
[372631721,1752718246772,-178.0216189,0.000187,2]
[372631722,1752718246781,-153.0,0.000187,2]
[372631723,1752718246790,-468.01423228,0.00018737,2]
[372631724,1752718246800,-460.0,0.00018737,2]
[372631725,1752718246810,-471.37863093,0.00018737,2]
[372631726,1752718246825,-460.0,0.00018738,2]
[372631727,1752718246835,-460.0,0.00018738,2]
[372631728,1752718246844,-460.0,0.00018738,2]
[372631729,1752718246854,-460.0,0.00018738,2]
[372631730,1752718246865,-462.84120728,0.00018738,2]
[372631731,1752718246874,-460.0,0.00018738,2]
[372631732,1752718246884,-460.0,0.00018738,2]
[372631733,1752718246896,-473.97,0.00018738,2]
[372631734,1752718246906,-3245.61,0.00018738,2]
[372631735,1752718246915,-460.0,0.00018738,2]
[372631736,1752718246925,-464.20976315,0.00018739,2]
[372631737,1752718246935,-460.0,0.00018739,2]
[372631739,1752718246945,-466.18298713,0.00018739,2]
[372631740,1752718246954,-8756.79,0.00018739,2]
[372631741,1752718246964,-270.00654479,0.00018739,2]
[372631742,1752718246973,-460.0,0.00018739,2]
[372631743,1752718246984,-7790.94,0.00018739,2]
[372631744,1752718246993,-460.0,0.00018739,2]
[372631745,1752718247003,-460.0,0.00018739,2]
[372631746,1752718247012,-4473.94,0.00018739,2]
[372631747,1752718247021,-460.0,0.00018739,2]
[372631748,1752718247031,-460.0,0.00018739,2]
[372631749,1752718247040,-1013.19,0.00018739,2]
[372631750,1752718247049,-3103.64,0.00018739,2]
[372631751,1752718247059,-566.12,0.00018739,2]
[372631752,1752718247068,-422.32927254,0.00018739,2]
[372631753,1752718247078,-3461.44,0.00018739,2]
[372631754,1752718247088,-460.0,0.00018739,2]
[372631755,1752718247098,-460.0,0.00018739,2]
[372631756,1752718247108,-3088.13,0.00018739,2]
[372631757,1752718247119,-460.0,0.00018739,2]
[372631758,1752718247128,-460.0,0.00018739,2]
[372631759,1752718247137,-465.50350925,0.0001874,2]
[372631760,1752718247147,-460.0,0.0001874,2]
[372631761,1752718247157,-460.0,0.0001874,2]
[372631762,1752718247166,-450.57992044,0.0001874,2]
[372631763,1752718247176,-461.08434697,0.0001874,2]
[372631764,1752718247186,-460.0,0.0001874,2]
[372631765,1752718247195,-460.0,0.0001874,2]
[372631766,1752718247205,-460.0,0.0001874,2]
[372631767,1752718247214,-467.98515864,0.0001874,2]
[372631768,1752718247224,-460.0,0.0001874,2]
[372631770,1752718247233,-460.0,0.0001874,2]
[372631771,1752718247243,-460.0,0.0001874,2]
[372631772,1752718247252,-460.0,0.0001874,2]
[372631773,1752718247262,-465.61338711,0.0001874,2]
[372631774,1752718247271,-857.9,0.0001874,2]
[372631775,1752718247281,-460.0,0.0001874,2]
[372631776,1752718247290,-2237.29,0.0001874,2]
[372631777,1752718247300,-460.0,0.0001874,2]
[372631778,1752718247309,-468.66255816,0.0001874,2]
[372631779,1752718247320,-460.0,0.0001874,2]
[372631780,1752718247330,-620.25,0.0001874,2]
[372631781,1752718247340,-936.93,0.0001874,2]
[372631782,1752718247350,-469.83793747,0.0001874,2]
[372631783,1752718247360,-460.0,0.0001874,2]
[372631784,1752718247369,-465.97451558,0.0001874,2]
[372631785,1752718247379,-769.67,0.0001874,2]
[372631786,1752718247388,-467.48955791,0.0001874,2]
[372631787,1752718247397,-460.0,0.0001874,2]
[372631788,1752718247407,-460.0,0.0001874,2]
[372631789,1752718247416,-463.74411108,0.0001874,2]
[372631790,1752718247425,-746.18,0.0001874,2]
[372631791,1752718247435,-460.0,0.0001874,2]
[372631792,1752718247444,-875.17,0.0001874,2]
[372631793,1752718247455,-464.04476148,0.0001874,2]
[372631794,1752718247464,-460.0,0.0001874,2]
[372631795,1752718247473,-1532.34,0.0001874,2]
[372631796,1752718247483,-464.13516193,0.0001874,2]
[372631797,1752718247493,-460.0,0.0001874,2]
[372631798,1752718247502,-786.85,0.0001874,2]
[372631799,1752718247512,-460.0,0.0001874,2]
[372631800,1752718247521,-460.0,0.0001874,2]
[372631801,1752718247531,-460.0,0.0001874,2]
[372631802,1752718247541,-460.0,0.0001874,2]
[372631803,1752718247550,-465.61879569,0.0001874,2]
[372631804,1752718247560,-460.0,0.0001874,2]
[372631805,1752718247569,-460.0,0.0001874,2]
[372631806,1752718247578,-519.99,0.00018741,2]
[372631807,1752718247588,-151.0,0.00018741,2]
[372631808,1752718247597,-196.137102,0.00018741,2]
[372631809,1752718247607,-196.137102,0.00018741,2]
[372631810,1752718247618,-151.0,0.00018741,2]
[372631811,1752718247628,-151.0,0.00018741,2]
[372631812,1752718247638,-151.0,0.00018741,2]
[372631813,1752718247647,-151.0,0.00018741,2]
[372631814,1752718247657,-460.0,0.00018741,2]
[372631815,1752718247667,-460.0,0.00018741,2]
[372631816,1752718247677,-460.0,0.00018741,2]
[372631817,1752718247686,-712.09,0.00018741,2]
[372631818,1752718247696,-1726.3,0.00018741,2]
[372631819,1752718247706,-465.42996911,0.00018741,2]
[372631820,1752718247716,-898.95,0.00018741,2]
[372631821,1752718247726,-460.0,0.00018741,2]
[372631822,1752718247739,-343.772556,0.00018741,2]
[372631823,1752718247758,-685.67,0.00018741,2]
[372631824,1752718247777,-343.772556,0.00018741,2]
[372631825,1752718247797,-206.506608,0.00018741,2]
[372631826,1752718247807,-206.506608,0.00018741,2]
[372631827,1752718247914,-460.0,0.00018741,2]
[372631828,1752718247924,-460.0,0.00018741,2]
[372631829,1752718247934,-460.0,0.00018741,2]
[372631830,1752718247944,-590.44,0.00018741,2]
[372631831,1752718247954,-663.06,0.00018741,2]
[372631832,1752718247964,-460.0,0.00018741,2]
[372631833,1752718247974,-460.0,0.00018741,2]
[372631834,1752718247984,-460.0,0.00018742,2]
[372631835,1752718247994,-460.0,0.00018742,2]
[372631836,1752718248004,-578.3,0.00018742,2]
[372631837,1752718248014,-460.0,0.00018742,2]
[372631838,1752718248023,-460.0,0.00018742,2]
[372631839,1752718248033,-805.3,0.00018742,2]
[372631840,1752718248043,-460.0,0.00018742,2]
[372631841,1752718248052,-466.75,0.00018742,2]
[372631842,1752718248061,-293.619493,0.00018742,2]
[372631843,1752718248071,-293.619493,0.00018742,2]
[372631844,1752718248085,-460.0,0.00018742,2]
[372631845,1752718248095,-856.6,0.00018742,2]
[372631846,1752718248106,-460.0,0.00018742,2]
[372631847,1752718248116,-649.93,0.00018742,2]
[372631848,1752718248126,-967.19,0.00018742,2]
[372631849,1752718248136,-1071.56,0.00018742,2]
[372631850,1752718248147,-467.93476166,0.00018742,2]
[372631851,1752718248158,-460.0,0.00018742,2]
[372631852,1752718248168,-471.94845962,0.00018742,2]
[372631853,1752718248178,-308.21307515,0.00018742,2]
[372631854,1752718248192,-460.0,0.00018742,2]
[372631855,1752718248202,-460.0,0.00018742,2]
[372631856,1752718248212,-151.0,0.00018742,2]
[372631857,1752718248223,-1415.87,0.00018742,2]
[372631858,1752718248233,-460.0,0.00018742,2]
[372631859,1752718248243,-563.75,0.00018742,2]
[372631860,1752718248253,-935.83,0.00018742,2]
[372631861,1752718248264,-616.4,0.00018742,2]
[372631862,1752718248274,-460.0,0.00018742,2]
[372631863,1752718248284,-460.0,0.00018742,2]
[372631864,1752718248293,-2243.98,0.00018742,2]
[372631865,1752718248303,-460.0,0.00018742,2]
[372631866,1752718248312,-4796.11,0.00018742,2]
[372631867,1752718248322,-5566.33,0.00018742,2]
[372631868,1752718248332,-532.35,0.00018742,2]
[372631869,1752718248341,-1639.65,0.00018742,2]
[372631870,1752718248351,-460.0,0.00018742,2]
[372631871,1752718248360,-465.70627507,0.00018742,2]
[372631872,1752718248370,-2114.97,0.00018742,2]
[372631873,1752718248380,-740.05,0.00018742,2]
[372631874,1752718248389,-2723.58,0.00018742,2]
[372631875,1752718248399,-460.0,0.00018742,2]
[372631876,1752718248409,-460.0,0.00018742,2]
[372631877,1752718248418,-460.0,0.00018742,2]
[372631878,1752718248428,-460.0,0.00018742,2]
[372631879,1752718248438,-293.09356221,0.00018742,2]
[372631880,1752718248447,-3000.53,0.00018742,2]
[372631881,1752718248457,-460.0,0.00018743,2]
[372631882,1752718248466,-151.35564,0.00018743,2]
[372631883,1752718248476,-464.94632199,0.00018743,2]
[372631884,1752718248486,-460.0,0.00018743,2]
[372631885,1752718248495,-790.212097,0.00018743,2]
[372631886,1752718248505,-790.212097,0.00018743,2]
[372631887,1752718248515,-460.0,0.00018743,2]
[372631888,1752718248524,-460.0,0.00018743,2]
[372631889,1752718248537,-282.708891,0.00018743,2]
[372631890,1752718248546,-282.708891,0.00018743,2]
[372631891,1752718248556,-460.0,0.00018743,2]
[372631892,1752718248566,-462.06,0.00018743,2]
[372631893,1752718248576,-460.0,0.00018743,2]
[372631894,1752718248585,-463.94729004,0.00018743,2]
[372631895,1752718248595,-460.0,0.00018743,2]
[372631896,1752718248605,-462.89057048,0.00018743,2]
[372631897,1752718248616,-470.40507623,0.00018743,2]
[372631898,1752718248625,-206.506608,0.00018743,2]
[372631899,1752718248635,-206.506608,0.00018743,2]
[372631900,1752718248647,-460.0,0.00018743,2]
[372631901,1752718248657,-460.0,0.00018743,2]
[372631902,1752718248667,-460.0,0.00018743,2]
[372631903,1752718248676,-460.0,0.00018743,2]
[372631904,1752718248686,-176.167926,0.00018744,2]
[372631905,1752718248695,-176.167926,0.00018744,2]
[372631906,1752718248706,-675.228133,0.00018744,2]
[372631907,1752718248716,-156.511881,0.00018744,2]
[372631908,1752718248725,-156.511881,0.00018744,2]
[372631909,1752718248736,-152.386084,0.00018744,2]
[372631910,1752718248746,-301.773818,0.00018744,2]
[372631911,1752718248756,-301.773818,0.00018744,2]
[372631912,1752718248766,-151.0,0.00018744,2]
[372631913,1752718248775,-196.137102,0.00018744,2]
[372631914,1752718248785,-151.0,0.00018744,2]
[372631915,1752718248802,-196.137102,0.00018744,2]
[372631916,1752718248816,-293.619493,0.00018744,2]
[372631917,1752718248826,-293.619493,0.00018744,2]
[372631918,1752718248835,-151.0,0.00018744,2]
[372631919,1752718248846,-151.0,0.00018744,2]
[372631920,1752718248857,-151.0,0.00018744,2]
[372631921,1752718248869,-151.0,0.00018744,2]
[372631922,1752718248879,-460.0,0.00018744,2]
[372631923,1752718248890,-460.0,0.00018744,2]
[372631924,1752718248901,-460.0,0.00018744,2]
[372631925,1752718248912,-460.0,0.00018744,2]
[372631926,1752718248923,-1078.71,0.00018744,2]
[372631927,1752718248934,-460.0,0.00018744,2]
[372631928,1752718248944,-460.0,0.00018744,2]
[372631929,1752718248954,-460.0,0.00018744,2]
[372631930,1752718248964,-460.0,0.00018744,2]
[372631931,1752718248973,-467.18557456,0.00018744,2]
[372631932,1752718248983,-460.0,0.00018744,2]
[372631933,1752718248993,-343.772556,0.00018744,2]
[372631934,1752718249003,-343.772556,0.00018744,2]
[372631935,1752718249013,-460.0,0.00018744,2]
[372631936,1752718249022,-465.57928394,0.00018744,2]
[372631937,1752718249035,-270.47790927,0.00018744,2]
[372631938,1752718249051,-460.0,0.00018744,2]
[372631939,1752718249061,-468.60795741,0.00018744,2]
[372631940,1752718249070,-460.0,0.00018744,2]
[372631941,1752718249080,-151.571345,0.00018745,2]
[372631942,1752718249089,-151.0,0.00018745,2]
[372631943,1752718249099,-460.0,0.00018745,2]
[372631944,1752718249109,-154.033612,0.00018745,2]
[372631945,1752718249119,-154.033612,0.00018745,2]
[372631946,1752718249129,-1129.212795,0.00018745,2]
[372631947,1752718249139,-1129.212795,0.00018745,2]
[372631948,1752718249150,-151.0,0.00018745,2]
[372631949,1752718249159,-284.10814505,0.00018745,2]
[372631950,1752718249169,-460.0,0.00018745,2]
[372631951,1752718249178,-460.0,0.00018745,2]
[372631952,1752718249189,-460.0,0.00018745,2]
[372631953,1752718249198,-790.212097,0.00018745,2]
[372631954,1752718249208,-790.212097,0.00018745,2]
[372631955,1752718249218,-464.86063796,0.00018745,2]
[372631956,1752718249228,-460.0,0.00018745,2]
[372631957,1752718249238,-460.0,0.00018745,2]
[372631958,1752718249248,-465.7251263,0.00018745,2]
[372631959,1752718249258,-317.94998213,0.00018745,2]
[372631960,1752718249268,-460.0,0.00018745,2]
[372631961,1752718249277,-460.0,0.00018745,2]
[372631962,1752718249286,-460.0,0.00018745,2]
[372631963,1752718249296,-464.66770651,0.00018745,2]
[372631964,1752718249306,-151.0,0.00018745,2]
[372631965,1752718249315,-460.0,0.00018745,2]
[372631966,1752718249325,-358.0,0.00018745,2]
[372631967,1752718249335,-176.167926,0.00018746,2]
[372631968,1752718249344,-176.167926,0.00018746,2]
[372631969,1752718249355,-675.228133,0.00018746,2]
[372631970,1752718249365,-156.511881,0.00018746,2]
[372631971,1752718249375,-156.511881,0.00018746,2]
[372631972,1752718249385,-301.773818,0.00018746,2]
[372631973,1752718249395,-301.773818,0.00018746,2]
[372631974,1752718249406,-151.0,0.00018746,2]
[372631975,1752718249415,-151.0,0.00018747,2]
[372631976,1752718249425,-1552.07123053,0.00018749,2]
[372631977,1752718249435,-151.0,0.00018756,2]
[372631978,1752718249446,-282.708891,0.00018756,2]
[372631979,1752718249457,-282.708891,0.00018756,2]
[372631980,1752718249477,-151.0,0.00018757,2]
[372631981,1752718249490,-177.44965,0.00018759,2]
[372631982,1752718249500,-250.92151076,0.00018764,2]
[372631983,1752718249510,-153.7028389,0.00018767,2]
[372631984,1752718249520,-177.44965,0.00018769,2]
[372631985,1752718249530,-177.44965,0.0001877,2]
[372631986,1752718249540,-154.033612,0.00018817,2]
[372631987,1752718249550,-154.033612,0.00018817,2]
[372631988,1752718249560,-151.0,0.00018817,2]
[372631989,1752718249570,-168.0,0.00018832,2]
[372631990,1752718249580,-900.0,0.00018842,2]
[372631991,1752718249595,-152.43705779,0.0001888,2]
[372631992,1752718249605,-431.8639028,0.000189,2]
[372631993,1752718249616,-11516.29110286,0.000189,2]
[372631994,1752718249626,-168.0,0.00018922,2]
[372631995,1752718249636,-1129.212795,0.00018942,2]
[372631996,1752718249646,-1129.212795,0.00018942,2]
[372631997,1752718249656,-1409.420029,0.00018942,2]
[372631998,1752718249666,-196.137102,0.00018942,2]
[372631999,1752718249676,-151.0,0.00018942,2]
[372632000,1752718249687,-196.137102,0.00018942,2]
[372632001,1752718249696,-151.0,0.00018973,2]
[372632002,1752718249705,-151.0,0.00018973,2]
[372632003,1752718249716,-151.0,0.00018985,2]
[372632004,1752718249727,-151.0,0.00018985,2]
[372632005,1752718249737,-151.0,0.00018985,2]
[372632006,1752718249747,-151.0,0.00018985,2]
[372632007,1752718249768,-151.0,0.00018985,2]
[372632008,1752718249782,-151.0,0.00018985,2]
[372632009,1752718249793,-151.0,0.00018985,2]
[372632010,1752718249803,-151.0,0.00018985,2]
[372632011,1752718249815,-319.151652,0.00018985,2]
[372632012,1752718249826,-319.151652,0.00018985,2]
[372632013,1752718249836,-319.151652,0.00018985,2]
[372632014,1752718249846,-319.151652,0.00018985,2]
[372632015,1752718249856,-196.001051,0.00018985,2]
[372632016,1752718249866,-196.001051,0.00018985,2]
[372632017,1752718249876,-196.001051,0.00018985,2]
[372632018,1752718249886,-196.001051,0.00018985,2]
[372632019,1752718249899,-197.064125,0.00018985,2]
[372632020,1752718250030,-197.064125,0.00018985,2]
[372632021,1752718250040,-197.064125,0.00018985,2]
[372632022,1752718250051,-197.064125,0.00018985,2]
[372632023,1752718250060,-151.0,0.00018985,2]
[372632024,1752718250070,-151.0,0.00018985,2]
[372632025,1752718250083,-151.0,0.00018985,2]
[372632026,1752718250092,-151.0,0.00018985,2]
[372632027,1752718250102,-151.0,0.00018985,2]
[372632028,1752718250112,-152.067933,0.00018985,2]
[372632029,1752718250121,-151.0,0.00018985,2]
[372632030,1752718250131,-151.0,0.00018985,2]
[372632031,1752718250140,-343.772556,0.00018985,2]
[372632032,1752718250150,-343.772556,0.00018985,2]
[372632033,1752718250160,-1000.0,0.00019,2]
[372632034,1752718250169,-1000.0,0.00019,2]
[372632035,1752718250179,-1000.0,0.00019,2]
[372632036,1752718250189,-1000.0,0.00019,2]
[372632037,1752718250198,-1000.0,0.00019,2]
[372632038,1752718250208,-1000.0,0.00019,2]
[372632039,1752718250218,-1000.0,0.00019,2]
[372632040,1752718250228,-1000.0,0.00019,2]
[372632041,1752718250237,-1000.0,0.00019,2]
[372632042,1752718250247,-1000.0,0.00019,2]
[372632043,1752718250256,-1000.0,0.00019,2]
[372632044,1752718250265,-1000.0,0.00019,2]
[372632045,1752718250275,-1000.0,0.00019,2]
[372632046,1752718250284,-1000.0,0.00019,2]
[372632047,1752718250296,-1000.0,0.00019,2]
[372632048,1752718250305,-469.11580098,0.00019011,2]
[372632049,1752718250316,-254.29528754,0.00019012,2]
[372632050,1752718250326,-460.0,0.00019012,2]
[372632051,1752718250335,-247.24299393,0.00019012,2]
[372632052,1752718250345,-460.0,0.00019012,2]
[372632053,1752718250355,-460.0,0.00019012,2]
[372632054,1752718250365,-460.0,0.00019012,2]
[372632055,1752718250374,-473.97,0.00019012,2]
[372632056,1752718250383,-3245.61,0.00019012,2]
[372632057,1752718250393,-511.48056786,0.00019012,2]
[372632058,1752718250403,-460.0,0.00019013,2]
[372632059,1752718250413,-8756.79,0.00019013,2]
[372632060,1752718250423,-468.47513244,0.00019013,2]
[372632061,1752718250433,-7790.94,0.00019013,2]
[372632062,1752718250442,-470.80709424,0.00019013,2]
[372632063,1752718250452,-460.0,0.00019013,2]
[372632064,1752718250462,-4473.94,0.00019013,2]
[372632065,1752718250471,-460.0,0.00019013,2]
[372632066,1752718250481,-206.506608,0.00019013,2]
[372632067,1752718250490,-206.506608,0.00019013,2]
[372632068,1752718250499,-460.0,0.00019013,2]
[372632069,1752718250509,-1013.19,0.00019013,2]
[372632070,1752718250518,-3103.64,0.00019013,2]
[372632071,1752718250527,-566.12,0.00019013,2]
[372632072,1752718250537,-3461.44,0.00019013,2]
[372632073,1752718250546,-460.0,0.00019013,2]
[372632074,1752718250556,-460.0,0.00019013,2]
[372632075,1752718250565,-3088.13,0.00019013,2]
[372632076,1752718250575,-460.0,0.00019013,2]
[372632077,1752718250584,-178.93447963,0.00019013,2]
[372632078,1752718250594,-460.0,0.00019014,2]
[372632079,1752718250604,-460.0,0.00019014,2]
[372632080,1752718250613,-460.0,0.00019014,2]
[372632081,1752718250623,-460.0,0.00019014,2]
[372632082,1752718250633,-466.54269439,0.00019014,2]
[372632083,1752718250643,-460.0,0.00019014,2]
[372632084,1752718250653,-460.0,0.00019014,2]
[372632085,1752718250663,-460.0,0.00019014,2]
[372632086,1752718250673,-460.0,0.00019014,2]
[372632087,1752718250682,-857.9,0.00019014,2]
[372632088,1752718250692,-460.0,0.00019014,2]
[372632089,1752718250701,-2237.29,0.00019014,2]
[372632090,1752718250711,-460.0,0.00019014,2]
[372632091,1752718250720,-468.35685035,0.00019014,2]
[372632092,1752718250730,-620.25,0.00019014,2]
[372632093,1752718250739,-936.93,0.00019014,2]
[372632094,1752718250749,-460.0,0.00019014,2]
[372632095,1752718250759,-769.67,0.00019014,2]
[372632096,1752718250769,-460.0,0.00019014,2]
[372632097,1752718250779,-468.8026947,0.00019014,2]
[372632098,1752718250788,-746.18,0.00019014,2]
[372632099,1752718250798,-460.0,0.00019014,2]
[372632100,1752718250808,-875.17,0.00019014,2]
[372632101,1752718250821,-460.0,0.00019014,2]
[372632102,1752718250831,-1532.34,0.00019014,2]
[372632103,1752718250840,-469.15076633,0.00019014,2]
[372632104,1752718250850,-786.85,0.00019014,2]
[372632105,1752718250861,-460.0,0.00019014,2]
[372632106,1752718250874,-460.0,0.00019014,2]
[372632107,1752718250884,-469.5843142,0.00019014,2]
[372632108,1752718250894,-460.0,0.00019014,2]
[372632109,1752718250903,-460.0,0.00019014,2]
[372632110,1752718250913,-460.0,0.00019014,2]
[372632111,1752718250922,-519.99,0.00019015,2]
[372632112,1752718250932,-460.0,0.00019015,2]
[372632113,1752718250941,-151.0,0.00019015,2]
[372632114,1752718250951,-460.0,0.00019015,2]
[372632115,1752718250960,-460.0,0.00019015,2]
[372632116,1752718250969,-712.09,0.00019015,2]